lending/lending_fUSD_20251018
["ID","MTS","AMOUNT","RATE_DAILY","PERIOD"]
[391730682,1760757041477,-151.0,0.00037858,120]
[391730683,1760757041487,-285.04679,0.00037858,120]
[391730684,1760757041496,-151.0,0.00037858,120]
[391730685,1760757041506,-151.0,0.00037858,120]
[391730686,1760757041515,-182.227829,0.00037858,120]
[391730687,1760757041525,-177.726684,0.00037858,120]
[391730688,1760757041534,-182.227829,0.00037858,120]
[391730689,1760757041544,-182.227829,0.00037858,120]
[391730690,1760757041554,-182.227829,0.00037858,120]
[391730691,1760757041563,-556.0,0.00037869,120]
[391730692,1760757041574,-1000.0,0.0003791,7]
[391730693,1760757041584,-150.0,0.00037932,7]
[391730694,1760757041594,-1195.33,0.00037935,120]
[391730695,1760757041603,-151.0,0.0003797,120]
[391730696,1760757041614,-151.0,0.0003797,120]
[391730697,1760757041629,-151.0,0.0003797,120]
[391730698,1760757041639,-151.0,0.0003797,120]
[391730699,1760757041650,-151.0,0.0003797,120]
[391730700,1760757041661,-151.0,0.0003797,120]
[391730701,1760757041671,-152.103314,0.0003797,120]
[391730702,1760757041682,-273.696864,0.0003797,120]
[391730703,1760757041692,-273.696864,0.0003797,120]
[391730704,1760757041702,-273.696864,0.0003797,120]
[391730705,1760757041712,-273.696864,0.0003797,120]
[391730706,1760757041722,-276.486004,0.0003797,120]
[391730707,1760757041733,-150.0,0.00037973,2]
[391730708,1760757041744,-286.6298505,0.00037998,7]
[391730709,1760757041754,-150.0,0.00038019,7]
[391730710,1760757041765,-2000.0,0.00038082,7]
[391730711,1760757041775,-1425.0,0.00038094,2]
[391730712,1760757041786,-200.369353,0.000381,16]
[391730713,1760757041795,-565.64512163,0.00038119,7]
[391730714,1760757041807,-8776.13483236,0.00038142,120]
[391730715,1760757041817,-1425.0,0.00038147,2]
[391730716,1760757041962,-150.0,0.00038148,7]
[391730717,1760757041972,-152.0,0.000382,120]
[391730718,1760757041982,-1000.0,0.00038201,7]
[391730719,1760757041991,-1000.0,0.00038214,7]
[391730720,1760757042000,-1425.0,0.00038306,2]
[391730721,1760757042009,-150.0,0.0003831,7]
[391730722,1760757042019,-1000.0,0.00038313,7]
[391730723,1760757042028,-2762.0,0.00038329,120]
[391730724,1760757042037,-500.0,0.00038355,17]
[391730725,1760757042046,-6327.83,0.00038356,10]
[391730726,1760757042055,-150.0,0.00038363,7]
[391730727,1760757042064,-504.01787316,0.00038365,2]
[391730728,1760757042073,-500.0,0.0003837,2]
[391730729,1760757042081,-758.6686,0.000384,2]
[391730730,1760757042091,-942.6061,0.000384,2]
[391730731,1760757042101,-167.2220571,0.00038413,2]
[391730732,1760757042109,-801.3312445,0.00038444,2]
[391730733,1760757042118,-1337.2127807,0.00038475,2]
[391730734,1760757042129,-300.0,0.00038499,10]
[391730735,1760757042139,-300.0,0.00038499,10]
[391730736,1760757042148,-300.0,0.00038499,10]
[391730737,1760757042159,-300.0,0.00038499,10]
[391730738,1760757042168,-300.0,0.00038499,10]
[391730739,1760757042178,-53412.07850438,0.000385,120]
[391730740,1760757042187,-433.62195135,0.00038534,2]
[391730741,1760757042196,-300.0,0.00038543,10]
[391730742,1760757042206,-300.0,0.00038543,10]
[391730743,1760757042215,-300.0,0.00038543,10]
[391730744,1760757042224,-300.0,0.00038543,10]
[391730745,1760757042234,-300.0,0.00038543,10]
[391730746,1760757042243,-150.0,0.00038543,2]
[391730747,1760757042252,-500.0,0.00038543,17]
[391730748,1760757042261,-500.0,0.00038543,17]
[391730749,1760757042271,-500.0,0.00038543,17]
[391730750,1760757042280,-500.0,0.00038543,17]
[391730751,1760757042289,-500.0,0.00038543,17]
[391730752,1760757042299,-335.95788012,0.00038543,17]
[391730753,1760757042309,-150.9492193,0.00038543,20]
[391730754,1760757042318,-414551.45694001,0.00038544,120]
[391730759,1760757042603,-557.0,0.00031454,2]
[391730760,1760757042613,-557.0,0.00034454,2]
[391730761,1760757042623,-4922.21968206,0.00034587,2]
[391730762,1760757042634,-250.0,0.00034587,2]
[391730768,1760757043275,-1.6e-07,0.0003429,30]
[391730769,1760757043286,-150.99999984,0.0003429,30]
[391730770,1760757043295,-4481.82150782,0.00034587,2]
[391730771,1760757043305,-9654.04118988,0.00035101,2]
[391730772,1760757043314,-159.537247,0.00037318,120]
[391730773,1760757043324,-557.0,0.00037454,2]
[391730774,1760757043334,-1425.0,0.00038169,2]
[391730775,1760757043343,-887926.75651357,0.00038544,120]
[391730776,1760757043354,-392.395263,0.00038544,120]
[391730883,1760757306168,2500.0,0.00012893,3]
[391730887,1760757325098,2500.0,0.00012884,3]
[391730888,1760757343889,2500.0,0.00012875,3]
[391730889,1760757362697,2500.0,0.00012866,3]
[391730896,1760757381624,2500.0,0.00012858,3]
[391730898,1760757400640,2500.0,0.00012849,3]
[391730914,1760757515258,478.87,0.00026525,120]
[391731008,1760757736247,-195.0,0.000187,2]
[391731009,1760757736269,-195.0,0.00019217,2]
[391731010,1760757736290,-195.0,0.00019734,2]
[391731015,1760757907971,99415.0,0.00015,2]
[391731016,1760757913287,-975.65761229,0.00015,2]
[391731017,1760757916986,-162.20630905,0.00015,2]
[391731019,1760757920130,-168.58978569,0.00015,2]
[391731020,1760757921662,-398.98200939,0.00015,2]
[391731021,1760757923551,-215.86258775,0.00015,2]
[391731022,1760757925721,-151.60749575,0.00015,2]
[391731024,1760757942568,-375.47997843,0.00015,2]
[391731025,1760757946070,-277.6475955,0.00015,2]
[391731026,1760757947531,-549.45890449,0.00015,2]
[391731028,1760757949220,-216.16146108,0.00015,2]
[391731030,1760757951237,-356.34079062,0.00015,2]
[391731032,1760757955873,-566.16748973,0.00015,2]
[391731041,1760757972426,-178.05494272,0.00014999,2]
[391731042,1760757975549,-121.94505728,0.00014999,2]
[391731043,1760757975573,-73.05494272,0.00015,2]
[391731044,1760757978150,-180.92839003,0.00015,2]
[391731045,1760757979943,-482.86536425,0.00015,2]
[391731046,1760757981982,-176.51023443,0.00015,2]
[391731047,1760757983516,-181.17533396,0.00015,2]
[391731048,1760757986126,-157.1395051,0.00015,2]
[391731049,1760758003834,-301.2621063,0.00015,2]
[391731051,1760758006828,-155.67117152,0.00015,2]
[391731052,1760758008968,-222.48930943,0.00015,2]
[391731053,1760758011603,-409.38578089,0.00015,2]
[391731054,1760758013709,-302.0,0.00015,2]
[391731055,1760758016465,-292.82820204,0.00015,2]
[391731056,1760758032520,-255.88023511,0.00015,2]
[391731057,1760758034172,-391.29641691,0.00015,2]
[391731058,1760758036772,-245.70097785,0.00015,2]
[391731059,1760758038899,-187.83020545,0.00015,2]
[391731060,1760758040411,-199.83052958,0.00015,2]
[391731061,1760758041845,-376.37713282,0.00015,2]
[391731062,1760758045159,-255.95304741,0.00015,2]
[391731063,1760758048326,-443.78365126,0.00015,2]
[391731064,1760758049749,-211.3242838,0.00015,2]
[391731065,1760758051778,-185.32030993,0.00015,2]
[391731066,1760758053269,-281.31230713,0.00015,2]
[391731067,1760758056960,-253.47309563,0.00015,2]
[391731068,1760758059812,-427.4339201,0.00015,2]
[391731074,1760758062423,-224.77044198,0.00015,2]
[391731075,1760758066681,-177.66646449,0.00015,2]
[391731084,1760758068127,-324.30763118,0.00015,2]
[391731085,1760758070194,-292.56832386,0.00015,2]
[391731091,1760758073811,-357.41725042,0.00015,2]
[391731110,1760758075209,-281.8224263,0.00015,2]
[391731111,1760758077349,-153.55358667,0.00015,2]
[391731112,1760758079374,400.0,0.00027,120]
[391731113,1760758079977,-226.76804084,0.00015,2]
[391731114,1760758082041,-317.25779484,0.00015,2]
[391731115,1760758083994,-245.06026282,0.00015,2]
[391731124,1760758086946,-196.83020587,0.00015,2]
[391731125,1760758089000,-481.89214912,0.00015,2]
[391731129,1760758090471,-273.97974045,0.00015,2]
[391731149,1760758092720,-198.32822773,0.00015,2]
[391731239,1760758113329,252.81628617,0.00032117,120]
[391731281,1760758181189,2500.0,0.000272,120]
[391731310,1760758232054,-3819.14771166,0.00014999,2]
[391731311,1760758232066,-1195.77228834,0.00014999,2]
[391731312,1760758232076,-1320.14713315,0.00015,2]
[391731314,1760758232086,-180.69323134,0.000164,2]
[391731315,1760758232095,-250.0,0.00016499,2]
[391731316,1760758232105,-300.0,0.00016499,2]
[391731317,1760758232115,-500.0,0.000165,3]
[391731318,1760758232124,-195.0,0.000165,2]
[391731319,1760758232134,-150.27,0.00020345,2]
[391731320,1760758232144,-793.40209386,0.0002038,2]
[391731335,1760758237840,-266.938,0.0002038,2]
[391731337,1760758239844,-139.65990614,0.0002038,2]
[391731338,1760758239855,-396.49009386,0.00020381,2]
[391731339,1760758239866,-79.25138292,0.00020381,2]
[391731340,1760758239878,-1200.0,0.00020399,2]
[391731341,1760758239888,-300.0,0.00020399,2]
[391731342,1760758239897,-1687.08372618,0.000204,2]
[391731343,1760758239907,-174.54956271,0.000204,2]
[391731344,1760758239919,-177.29077399,0.000204,2]
[391731345,1760758239929,-181.50249355,0.000204,2]
[391731346,1760758239938,-1687.08372618,0.000206,2]
[391731347,1760758239948,-174.54956271,0.000206,2]
[391731348,1760758239958,-177.29077399,0.000206,2]
[391731349,1760758239968,-1687.08372618,0.000208,2]
[391731350,1760758239977,-174.54956271,0.000208,2]
[391731351,1760758239987,-177.29077399,0.000208,2]
[391731352,1760758239996,-1687.08372618,0.00021,2]
[391731353,1760758240006,-174.54956271,0.00021,2]
[391731354,1760758240016,-177.29077399,0.00021,2]
[391731355,1760758240026,-1687.08372618,0.000212,2]
[391731356,1760758240035,-174.54956271,0.000212,2]
[391731357,1760758240045,-177.29077399,0.000212,2]
[391731358,1760758240054,-1687.08372618,0.000214,2]
[391731359,1760758240064,-1687.08372618,0.000216,2]
[391731360,1760758240073,-1687.08372618,0.000219,2]
[391731361,1760758240083,-1687.08372618,0.000221,2]
[391731362,1760758240092,-420.0,0.00022203,2]
[391731363,1760758240102,-1850.71129877,0.00022272,2]
[391731364,1760758240111,-1680.0,0.00022289,2]
[391731365,1760758240120,-392.0,0.00022299,2]
[391731366,1760758240129,-1687.08372618,0.000223,2]
[391731367,1760758240139,-250.0,0.0002233,2]
[391731368,1760758240148,-265.76529837,0.00023,2]
[391731369,1760758240158,-265.76529837,0.000232,2]
[391731370,1760758240168,-265.76529837,0.000235,2]
[391731371,1760758240178,-265.76529837,0.000237,2]
[391731372,1760758240187,-265.76529837,0.000239,2]
[391731373,1760758240196,-587.0,0.00024167,2]
[391731374,1760758240206,-381.0,0.00024377,2]
[391731375,1760758240215,-166.35,0.00024658,2]
[391731376,1760758240224,-151.81,0.00025143,2]
[391731377,1760758240233,-154.84,0.00025388,2]
[391731378,1760758240243,-151.33,0.00025995,2]
[391731379,1760758240252,-616.04,0.0002616,2]
[391731380,1760758240261,-421.73,0.00026298,2]
[391731381,1760758240271,-181.614,0.00026336,13]
[391731382,1760758240280,-2264.323,0.00026336,13]
[391731383,1760758240288,-150.0,0.00026441,2]
[391731384,1760758240300,-250.0,0.00026583,7]
[391731385,1760758240309,-156.66,0.00026674,2]
[391731386,1760758240319,-163.91,0.00026674,2]
[391731387,1760758240328,-502.0,0.00026712,2]
[391731388,1760758240337,-793.59166994,0.00026745,2]
[391731389,1760758240349,-1170.3795753,0.00026745,2]
[391731390,1760758240363,-298.98565042,0.00026745,2]
[391731391,1760758240374,-512.27802841,0.00026745,2]
[391731392,1760758240385,-633.5925232,0.00026745,2]
[391731393,1760758240865,-1.6e-07,0.00026745,2]
[391731394,1760758240877,-15231.61255257,0.00026745,2]
[391731395,1760758240886,-13518.34,0.00026781,2]
[391731396,1760758240895,-180.69323133,0.000269,2]
[391731397,1760758240905,-250.0,0.00027,2]
[391731398,1760758240915,-21066.81755415,0.00027,2]
[391731399,1760758240925,-1017.61452637,0.00027,2]
[391731400,1760758240934,-4194.92464401,0.00027,2]
[391731401,1760758240943,-530.0,0.00027,2]
[391731402,1760758240952,-320.20675479,0.00027,2]
[391731403,1760758240961,-150.0,0.00027397,7]
[391731404,1760758240970,-1000.0,0.0002762,2]
[391731405,1760758240981,-166.35,0.00027993,2]
[391731406,1760758240991,-400.0,0.00028,120]
[391731407,1760758241000,-153.0,0.00028469,2]
[391731408,1760758241009,-153.0,0.00028469,2]
[391731409,1760758241018,-153.0,0.00028469,2]
[391731410,1760758241029,-153.0,0.00028469,2]
[391731411,1760758241037,-153.0,0.00028469,2]
[391731413,1760758241046,-153.0,0.00028469,2]
[391731414,1760758241056,-153.0,0.00028469,2]
[391731415,1760758241066,-153.0,0.00028469,2]
[391731416,1760758241075,-500.0,0.00028877,2]
[391731417,1760758241085,-16506.76286703,0.00028888,2]
[391731418,1760758241094,-1000.42768112,0.00029,2]
[391731420,1760758241104,-300.0,0.00029818,2]
[391731421,1760758241113,-478.87,0.00029841,120]
[391731422,1760758241123,-400.0,0.0003,120]
[391731423,1760758241132,-501.9436937,0.00030625,5]
[391731424,1760758241141,-503.04268844,0.00030625,5]
[391731426,1760758241151,-300.0,0.00031,120]
[391731427,1760758241160,-300.0,0.00031187,2]
[391731428,1760758241169,-503.0252554,0.00031286,5]
[391731429,1760758241178,-166.35,0.00031328,2]
[391731430,1760758241187,-11951.22454641,0.0003143,4]
[391731432,1760758241196,-400.0,0.00032,120]
[391731433,1760758241206,-32368.50246934,0.00032748,5]
[391731434,1760758241215,-300.0,0.00033,120]
[391731435,1760758241224,-478.87,0.00033157,120]
[391731437,1760758241234,-152.0,0.00033233,3]
[391731438,1760758241243,-3611.78330395,0.00033565,2]
[391731439,1760758241253,-1589.0,0.00033665,2]
[391731440,1760758241262,-605.0,0.00033665,2]
[391731441,1760758241271,-1310.0,0.00033665,2]
[391731442,1760758241281,-571.0,0.00033665,2]
[391731443,1760758241290,-817.0,0.00033665,2]
[391731444,1760758241300,-902.0,0.00033665,2]
[391731445,1760758241310,-1183.0,0.00033665,2]
[391731446,1760758241320,-2546.0,0.00033665,2]
[391731447,1760758241331,-3408.0,0.00033665,2]
[391731448,1760758241342,-2590.0,0.00033665,2]
[391731449,1760758241353,-2050.0,0.00033665,2]
[391731450,1760758241367,-1000.0,0.000338,2]
[391731451,1760758241378,-4120.71599534,0.00033925,6]
[391731452,1760758241387,-6757.82883297,0.00033925,2]
[391731453,1760758241399,-320.0443688,0.00033925,2]
[391731454,1760758241409,-1221.8877,0.00033925,2]
[391731455,1760758241420,-253.54443785,0.00034,120]
[391731456,1760758241432,-400.0,0.00034,120]
[391731457,1760758241443,-23605.4568669,0.00034015,2]
[391731458,1760758241452,-500.0,0.00034024,7]
[391731459,1760758241463,-253.76605841,0.00034024,7]
[391731460,1760758241472,-192626.3613,0.00034025,2]
[391731461,1760758241481,-2467.47141009,0.00034025,2]
[391731462,1760758241491,-500.0,0.00034073,5]
[391731463,1760758241500,-508.32529215,0.00034073,5]
[391731464,1760758241509,-3611.78330392,0.00034269,2]
[391731465,1760758241518,-6757.82883291,0.00034456,2]
[391731466,1760758241527,-1000.0,0.00034621,5]
[391731467,1760758241536,-166.35,0.00034664,2]
[391731468,1760758241545,-503.23186723,0.00034687,17]
[391731469,1760758241554,-507.24699481,0.00034687,17]
[391731470,1760758241563,-2194.03370809,0.00034688,2]
[391731471,1760758241572,-4457.39549157,0.000349,7]
[391731472,1760758241581,-1166.06523479,0.0003495,120]
[391731473,1760758241591,-3611.78330392,0.00034973,2]
[391731474,1760758241600,-6757.82883291,0.00034986,2]
[391731475,1760758241609,-300.0,0.00035,120]
[391731476,1760758241618,-274.60564354,0.00035168,5]
[391731477,1760758241627,-500.0,0.00035227,120]
[391731478,1760758241636,-320.04436876,0.00035248,2]
[391731479,1760758241645,-173.7303512,0.00035379,15]
[391731480,1760758241654,-11802.7284335,0.00035469,2]
[391731481,1760758241663,-6757.82883291,0.00035517,2]
[391731482,1760758241672,-3611.78330392,0.00035677,2]
[391731483,1760758241681,-474.15,0.000357,60]
[391731484,1760758241690,-500.0,0.00036,120]
[391731485,1760758241699,-500.0,0.00036,120]
[391731486,1760758241708,-500.0,0.00036,120]
[391731487,1760758241717,-612.0,0.00036,120]
[391731488,1760758241726,-150.0,0.00036,7]
[391731489,1760758241736,-150.0,0.00036,7]
[391731490,1760758241747,-150.0,0.00036,7]
[391731491,1760758241757,-150.0,0.00036,7]
[391731492,1760758241767,-150.0,0.00036,7]
[391731493,1760758241775,-150.0,0.00036,7]
[391731494,1760758241785,-150.0,0.00036,7]
[391731495,1760758241795,-150.0,0.00036,7]
[391731496,1760758241804,-150.0,0.00036,7]
[391731497,1760758241813,-295.57131539,0.00036,7]
[391731498,1760758241822,-150.0,0.00036,7]
[391731499,1760758241831,-150.0,0.00036,7]
[391731500,1760758241841,-400.0,0.00036,120]
[391731501,1760758241850,-758.0,0.00036,2]
[391731502,1760758241862,-942.0,0.00036,2]
[391731503,1760758241871,-6757.82883291,0.00036047,2]
[391731504,1760758241882,-198.326431,0.00036089,17]
[391731505,1760758241891,-152.0,0.00036256,4]
[391731506,1760758241901,-3611.78330392,0.00036381,2]
[391731507,1760758241910,-478.87,0.00036472,120]
[391731508,1760758241921,-2880.81611751,0.000365,120]
[391731509,1760758241930,-6757.82883291,0.00036578,2]
[391731510,1760758241939,-200.654269,0.00036616,2]
[391731511,1760758241949,-800.0,0.00036625,7]
[391731512,1760758241959,-11802.7284335,0.00036655,3]
[391731513,1760758241969,-1589.0,0.00036665,2]
[391731514,1760758241980,-605.0,0.00036665,2]
[391731515,1760758241989,-1310.0,0.00036665,2]
[391731516,1760758242002,-571.0,0.00036665,2]
[391731517,1760758242011,-817.0,0.00036665,2]
[391731518,1760758242021,-902.0,0.00036665,2]
[391731519,1760758242031,-1183.0,0.00036665,2]
[391731520,1760758242040,-2546.0,0.00036665,2]
[391731521,1760758242049,-3408.0,0.00036665,2]
[391731522,1760758242060,-2590.0,0.00036665,2]
[391731523,1760758242073,-2050.0,0.00036665,2]
[391731524,1760758242082,-1613.03692224,0.000367,120]
[391731525,1760758242091,-695.39,0.00036877,2]
[391731526,1760758242100,-13886.08893262,0.0003691,2]
[391731527,1760758242109,-500.0,0.0003696,120]
[391731528,1760758242119,-11802.7284335,0.0003699,3]
[391731529,1760758242129,-1000.0,0.00037,2]
[391731530,1760758242138,-1000.0,0.00037,2]
[391731531,1760758242147,-1000.0,0.00037,2]
[391731532,1760758242157,-5661.0,0.00037,117]
[391731533,1760758242167,-1033.1366,0.00037,2]
[391731534,1760758242176,-1000.0,0.00037,2]
[391731535,1760758242185,-1000.0,0.00037,2]
[391731536,1760758242194,-1000.0,0.00037,2]
[391731537,1760758242203,-150.0,0.00037,7]
[391731538,1760758242212,-1000.0,0.00037,2]
[391731539,1760758242222,-1000.0,0.00037,2]
[391731540,1760758242232,-1242.29765712,0.00037,30]
[391731541,1760758242241,-2194.03370809,0.00037,120]
[391731542,1760758242250,-1000.0,0.00037,2]
[391731543,1760758242259,-300.0,0.00037,120]
[391731544,1760758242268,-3611.78330392,0.00037084,2]
[391731545,1760758242278,-2000.0,0.00037093,120]
[391731546,1760758242287,-6757.82883291,0.00037108,2]
[391731547,1760758242296,-150.0,0.00037151,2]
[391731548,1760758242305,-150.0,0.00037151,2]
[391731549,1760758242315,-150.0,0.00037151,2]
[391731550,1760758242324,-191.13416905,0.000372,120]
[391731551,1760758242333,-191.13416905,0.000372,120]
[391731553,1760758242343,-191.13416905,0.000372,120]
[391731554,1760758242353,-191.13416905,0.000372,120]
[391731555,1760758242364,-173.7303512,0.00037283,15]
[391731556,1760758242373,-150.0,0.00037333,7]
[391731557,1760758242383,-200.0,0.00037373,5]
[391731558,1760758242392,-194528.9943081,0.0003739,14]
[391731559,1760758242402,-616.04,0.00037393,2]
[391731560,1760758242411,-800.0,0.00037447,7]
[391731561,1760758242421,-500.0,0.00037543,7]
[391731562,1760758242431,-500.0,0.00037543,7]
[391731563,1760758242440,-500.0,0.00037543,7]
[391731564,1760758242450,-264.7,0.00037543,7]
[391731565,1760758242459,-500.0,0.00037543,7]
[391731566,1760758242468,-500.0,0.00037543,7]
[391731567,1760758242477,-500.0,0.00037543,7]
[391731568,1760758242487,-500.0,0.00037543,7]
[391731569,1760758242496,-500.0,0.00037543,7]
[391731570,1760758242505,-500.0,0.00037543,7]
[391731571,1760758242515,-500.0,0.00037543,7]
[391731572,1760758242524,-500.0,0.00037543,7]
[391731573,1760758242533,-500.0,0.00037543,7]
[391731574,1760758242542,-500.0,0.00037543,7]
[391731582,1760758242709,-500.0,0.00037543,7]
[391731584,1760758242718,-500.0,0.00037543,7]
[391731586,1760758242727,-500.0,0.00037543,7]
[391731588,1760758242736,-500.0,0.00037543,7]
[391731590,1760758242745,-500.0,0.00037543,7]
[391731591,1760758242753,-500.0,0.00037543,7]
[391731592,1760758242762,-500.0,0.00037543,7]
[391731593,1760758242771,-500.0,0.00037543,7]
[391731595,1760758242780,-500.0,0.00037543,7]
[391731597,1760758242789,-500.0,0.00037543,7]
[391731598,1760758242798,-500.0,0.00037543,7]
[391731599,1760758242807,-500.0,0.00037543,7]
[391731600,1760758242816,-500.0,0.00037543,7]
[391731601,1760758242825,-500.0,0.00037543,7]
[391731602,1760758242834,-500.0,0.00037543,7]
[391731603,1760758242843,-500.0,0.00037543,7]
[391731604,1760758242852,-500.0,0.00037543,7]
[391731605,1760758242861,-500.0,0.00037543,7]
[391731606,1760758242870,-500.0,0.00037543,7]
[391731607,1760758242879,-500.0,0.00037543,7]
[391731608,1760758242887,-500.0,0.00037543,7]
[391731609,1760758242896,-537.8,0.00037543,7]
[391731610,1760758242905,-4259.04155643,0.0003759,2]
[391731611,1760758242914,-6757.82883291,0.00037639,2]
[391731612,1760758242923,-2500.0,0.00037686,7]
[391731613,1760758242932,-2500.0,0.00037695,7]
[391731614,1760758242941,-3611.78330392,0.00037788,2]
[391731616,1760758242950,-198.60802916,0.0003788,2]
[391731617,1760758242960,-2375.0,0.00037922,5]
[391731618,1760758242969,-11802.7284335,0.0003799,3]
[391731620,1760758242979,-791.48292532,0.00037999,120]
[391731621,1760758242988,-166.35,0.00037999,2]
[391731622,1760758242997,-158.0,0.00038,30]
[391731624,1760758243006,-7000.0,0.00038,30]
[391731625,1760758243015,-150.0,0.00038,7]
[391731626,1760758243024,-150.0,0.00038,7]
[391731627,1760758243033,-150.0,0.00038,7]
[391731628,1760758243043,-150.0,0.00038,7]
[391731629,1760758243052,-150.0,0.00038,7]
[391731630,1760758243061,-150.0,0.00038,7]
[391731631,1760758243070,-400.0,0.00038,120]
[391731632,1760758243079,-1864.97054019,0.00038,120]
[391731633,1760758243088,-273.50628965,0.00038,120]
[391731634,1760758243098,-400.0,0.00038058,5]
[391731635,1760758243107,-11802.7284335,0.0003815,3]
[391731636,1760758243116,-21704.54690313,0.0003816,2]
[391731637,1760758243126,-303.76453,0.0003816,2]
[391731638,1760758243135,-6757.82883291,0.00038169,2]
[391731639,1760758243144,-800.0,0.00038269,7]
[391731640,1760758243153,-150.62,0.00038274,2]
[391731641,1760758243163,-1000.0,0.00038295,7]
[391731642,1760758243172,-5000.0,0.00038333,2]
[391731643,1760758243182,-1425.0,0.00038358,2]
[391731644,1760758243192,-303.76454,0.0003837,2]
[391731645,1760758243202,-11802.7284335,0.00038399,3]
[391731646,1760758243212,-1425.0,0.00038407,2]
[391731647,1760758243223,-1425.0,0.00038409,2]
[391731648,1760758243234,-406.91945597,0.00038434,2]
[391731649,1760758243244,-160.77807033,0.00038434,11]
[391731650,1760758243255,-307.7076,0.00038443,10]
[391731651,1760758243265,-46606.7583,0.00038443,30]
[391731652,1760758243274,-769.6455918,0.00038444,2]
[391731653,1760758243284,-250.0,0.00038473,5]
[391731654,1760758243293,-59013.6421673,0.00038473,3]
[391731655,1760758243302,-8172.96238248,0.00038473,3]
[391731656,1760758243312,-1425.0,0.00038481,2]
[391731657,1760758243321,-105806.127602,0.00038483,2]
[391731658,1760758243331,-492.370403,0.00038483,2]
[391731659,1760758243342,-1425.0,0.00038486,2]
[391731660,1760758243353,-3611.78330392,0.00038492,2]
[391731661,1760758243365,-200.0,0.000385,14]
[391731663,1760758243374,-8172.96238248,0.00038514,3]
[391731664,1760758243385,-11802.7284335,0.00038523,3]
[391731665,1760758243395,-16345.924765,0.00038523,3]
[391731666,1760758243405,-150.52,0.00038523,2]
[391731667,1760758243414,-150.52,0.00038523,2]
[391731668,1760758243424,-216.81097568,0.00038523,2]
[391731669,1760758243434,-11802.7284335,0.00038524,3]
[391731670,1760758243444,-151.0,0.00038533,120]
[391731671,1760758243455,-151.0,0.00038533,120]
[391731672,1760758243466,-151.0,0.00038533,120]
[391731673,1760758243475,-151.0,0.00038533,120]
[391731674,1760758243483,-151.0,0.00038533,120]
[391731675,1760758243493,-151.0,0.00038533,120]
[391731676,1760758243501,-151.0,0.00038533,120]
[391731677,1760758243512,-151.0,0.00038533,120]
[391731678,1760758243524,-151.0,0.00038533,120]
[391731679,1760758243535,-151.0,0.00038533,120]
[391731680,1760758243546,-151.975845,0.00038533,120]
[391731681,1760758243556,-151.0,0.00038533,120]
[391731682,1760758243565,-151.0,0.00038533,120]
[391731683,1760758243574,-151.0,0.00038533,120]
[391731684,1760758243583,-151.0,0.00038533,120]
[391731685,1760758243592,-152.58663,0.00038533,120]
[391731686,1760758243602,-118027.284335,0.00038533,3]
[391731687,1760758243611,-86797.56644612,0.00038533,3]
[391731688,1760758243743,-151.0,0.00031,120]
[391731689,1760758243753,-151.0,0.000321,120]
[391731690,1760758243762,-216.52466005,0.00038533,3]
[391731691,1760758243775,-14616.04893355,0.00038533,3]
[391731697,1760758245866,-346.7217776,0.00026744,2]
[391731698,1760758245875,-153.0,0.00028469,2]
[391731699,1760758245884,-153.0,0.00028469,2]
[391731700,1760758245893,-153.0,0.00028469,2]